bitfinex/quotes_SOLUSD_20240824
["timestamp","ask_amount","ask_price","bid_price","bid_amount"]
[1724507391596,9.83305033,158.17,158.11,16.6418]
[1724507394183,3.20741062,158.16,158.11,16.6418]
[1724507394385,3.20741062,158.15,158.11,16.6418]
[1724507394593,9.83305033,158.17,158.11,16.6418]
[1724507394785,3.20741062,158.16,158.11,16.6418]
[1724507394986,3.20741062,158.15,158.11,16.6418]
[1724507395188,6.3215,158.19,158.11,16.6418]
[1724507395503,13.04045584,158.18,158.11,16.6418]
[1724507395686,9.83305033,158.18,158.11,16.6418]
[1724507395884,3.20740807,158.17,158.11,16.6418]
[1724507396078,3.20740807,158.16,158.11,16.6418]
[1724507397003,3.20740807,158.15,158.11,16.6418]
[1724507397183,9.83305033,158.16,158.11,16.6418]
[1724507397383,3.2073061,158.15,158.11,16.6418]
[1724507397578,9.83305033,158.16,158.11,16.6418]
[1724507397778,3.20730355,158.15,158.11,16.6418]
[1724507397978,9.83305033,158.16,158.11,16.6418]
[1724507398190,3.2073061,158.15,158.11,16.6418]
[1724507398387,9.83305033,158.16,158.11,16.6418]
[1724507398799,3.20741318,158.15,158.11,16.6418]
[1724507399009,9.83305033,158.16,158.11,16.6418]
[1724507399283,3.20680345,158.15,158.11,16.6418]
[1724507399499,9.83305033,158.16,158.11,16.6418]
[1724507399698,3.206806,158.15,158.11,16.6418]
[1724507399891,9.83305033,158.16,158.11,16.6418]
[1724507400094,3.20649859,158.15,158.11,16.6418]
[1724507400295,9.83305033,158.16,158.11,16.6418]
[1724507400693,3.20649859,158.15,158.11,16.6418]
[1724507400894,9.83305033,158.16,158.11,16.6418]
[1724507403118,3.20659806,158.15,158.11,16.6418]
[1724507403407,9.83305033,158.16,158.11,16.6418]
[1724507403611,3.20690547,158.15,158.11,16.6418]
[1724507403797,9.83305033,158.16,158.11,16.6418]
[1724507403983,9.83305033,158.14,158.11,16.6418]
[1724507404591,9.83305033,158.12,158.08,6.61167142]
[1724507405396,9.83305033,158.12,158.09,1.26476768]
[1724507405897,9.83305033,158.12,158.08,6.61167142]
[1724507408091,9.83305033,158.14,158.09,1.26475392]
[1724507408803,21.966,158.19,158.09,1.26475392]
[1724507408804,6.3224,158.17,158.09,1.26475392]
[1724507409011,13.04101703,158.16,158.08,6.61167142]
[1724507409209,3.2079667,158.15,158.09,45.0]
[1724507409505,9.83305033,158.16,158.09,45.0]
[1724507409709,3.20714571,158.15,158.09,45.0]
[1724507409904,9.83305033,158.14,158.08,6.61167142]
[1724507410219,9.83305033,158.14,158.07,23.0157]
[1724507410513,9.83305033,158.14,158.08,6.61282959]
[1724507412119,9.83305033,158.14,158.09,1.26471038]
[1724507413606,9.83305033,158.15,158.09,1.26471038]
[1724507413922,3.20756937,158.14,158.09,46.26471038]
[1724507414118,9.83305033,158.15,158.09,46.26471038]
[1724507414322,3.20756682,158.14,158.09,46.26471038]
[1724507414495,9.83305033,158.15,158.09,46.26471038]
[1724507414697,3.20745973,158.14,158.09,45.0]
[1724507414901,9.83305033,158.15,158.09,45.0]
[1724507415098,3.20745718,158.14,158.09,45.0]
[1724507415302,9.83305033,158.15,158.09,45.0]
[1724507415515,3.20745718,158.14,158.09,45.0]
[1724507415826,9.83305033,158.15,158.09,45.0]
[1724507416432,16.15535033,158.17,158.1,1.26453317]
[1724507416612,3.20709564,158.16,158.11,1.26447824]
[1724507416818,3.20709564,158.15,158.11,1.26447824]
[1724507417021,9.83305033,158.17,158.11,1.26447824]
[1724507417327,3.20692894,158.16,158.12,26.45965033]
[1724507417530,16.15345033,158.22,158.13,45.0]
[1724507417830,16.15345033,158.22,158.12,26.45965033]
[1724507417831,9.83305033,158.2,158.12,16.6266]
[1724507418041,9.83305033,158.18,158.12,16.6266]
[1724507418210,3.20644011,158.17,158.12,16.6266]
[1724507418526,3.20644011,158.16,158.12,16.6266]
[1724507418732,3.20644011,158.15,158.12,16.6266]
[1724507419028,9.83305033,158.18,158.12,16.6266]
[1724507419203,3.45785861,158.17,158.12,16.6266]
[1724507419516,16.1577784,158.24,158.13,1.26433171]
[1724507419517,3.20687861,158.16,158.13,1.26433171]
[1724507419718,16.15345033,158.22,158.13,1.26433171]
[1724507419906,3.45709014,158.21,158.13,1.26433171]
[1724507420105,3.20611014,158.2,158.12,16.6266]
[1724507420313,3.20611014,158.19,158.12,16.6266]
[1724507420613,3.20611014,158.18,158.13,45.0]
[1724507420822,3.20611014,158.17,158.13,45.0]
[1724507421015,3.20611014,158.16,158.13,45.0]
[1724507421210,0.25098,158.21,158.13,45.0]
[1724507421408,3.20594547,158.2,158.14,1.26415146]
[1724507421627,3.20594547,158.19,158.15,1.2641387]
[1724507421826,3.20594547,158.18,158.13,45.0]
[1724507422132,3.20594547,158.17,158.13,45.0]
[1724507422325,3.20594547,158.16,158.13,45.0]
[1724507422627,9.83305033,158.2,158.13,45.0]
[1724507422823,3.20594964,158.19,158.13,45.0]
[1724507423005,3.20594964,158.18,158.13,45.0]
[1724507423207,3.20594964,158.17,158.13,45.0]
[1724507423522,3.20594964,158.16,158.13,45.0]
[1724507423825,9.83305033,158.2,158.13,45.0]
[1724507424027,3.20595986,158.19,158.13,45.0]
[1724507424220,3.20595986,158.18,158.13,51.1455]
[1724507424425,3.20595986,158.17,158.13,51.1455]
[1724507424625,3.20595986,158.16,158.13,51.1455]
[1724507424818,9.83305033,158.2,158.13,51.1455]
[1724507425001,3.20593462,158.19,158.13,51.1455]
[1724507425201,3.20593462,158.18,158.13,51.1455]
[1724507425405,3.20593462,158.17,158.14,1.26416078]
[1724507425644,3.20593462,158.16,158.15,1.26416776]
[1724507425832,3.20593462,158.16,158.13,51.1455]
[1724507426019,16.15345033,158.22,158.13,51.1455]
[1724507426527,9.83305033,158.2,158.13,51.1455]
[1724507426727,3.20574918,158.19,158.13,51.1455]
[1724507426905,3.20574918,158.18,158.13,51.1455]
[1724507427109,3.20574918,158.17,158.13,51.1455]
[1724507427350,3.20574918,158.16,158.13,51.1455]
[1724507427523,9.83305033,158.2,158.13,51.1455]
[1724507427838,3.20583597,158.19,158.13,51.1455]
[1724507428051,3.20583597,158.18,158.13,51.1455]
[1724507428214,9.83305033,158.2,158.13,51.1455]
[1724507428215,3.20583597,158.17,158.13,51.1455]
[1724507428413,3.20583597,158.16,158.13,51.1455]
[1724507428626,9.83305033,158.2,158.13,51.1455]
[1724507428827,3.2058462,158.19,158.13,51.1455]
[1724507429013,3.2058462,158.18,158.13,51.1455]
[1724507429229,3.2058462,158.17,158.13,51.1455]
[1724507429407,3.2058462,158.16,158.13,51.1455]
[1724507429613,9.83305033,158.2,158.13,51.1455]
[1724507429814,3.20583597,158.19,158.13,51.1455]
[1724507430035,3.20583597,158.18,158.13,51.1455]
[1724507430339,3.20583597,158.17,158.13,51.1455]
[1724507430640,3.20583597,158.16,158.13,51.1455]
[1724507430942,9.83305033,158.2,158.13,51.1455]
[1724507431233,3.20573578,158.19,158.13,51.1455]
[1724507431429,3.20573578,158.18,158.14,1.26407421]
[1724507431634,3.20573578,158.17,158.14,1.26407421]
[1724507431837,3.20573578,158.16,158.14,1.26407421]
[1724507432133,9.83305033,158.2,158.15,1.26411429]
[1724507432324,3.20583006,158.19,158.15,1.26411429]
[1724507432633,9.83305033,158.2,158.15,1.26411429]
[1724507432836,3.20583261,158.18,158.15,1.26411429]
[1724507433037,3.20583261,158.17,158.15,1.26411429]
[1724507433242,3.20583261,158.16,158.15,1.26411429]
[1724507433714,6.6779784,158.24,158.15,1.26411429]
[1724507433915,9.83305033,158.23,158.15,46.26411429]
[1724507434533,9.83305033,158.19,158.13,6.1455]
[1724507434839,9.83305033,158.18,158.14,45.0]
[1724507435058,55.48997972,158.24,158.13,6.1455]
[1724507435220,6.3215,158.19,158.12,16.6266]
[1724507435533,9.83305033,158.17,158.12,16.6266]
[1724507436128,6.3215,158.19,158.12,16.6266]
[1724507436335,9.83305033,158.16,158.12,16.6266]
[1724507436537,6.3223,158.17,158.09,12.71426234]
[1724507436839,22.8553,158.2,158.1,1.26440578]
[1724507437025,9.83305033,158.15,158.11,1.26440378]
[1724507437823,9.83305033,158.15,158.09,12.71426234]
[1724507438833,9.83305033,158.15,158.1,1.26449919]
[1724507439133,9.83305033,158.15,158.11,1.26449606]
[1724507439337,9.83305033,158.15,158.09,6.61076234]
[1724507440136,9.83305033,158.13,158.09,6.61076234]
[1724507441137,9.83305033,158.11,158.09,6.61076234]
[1724507442241,9.83305033,158.13,158.09,6.61076234]
[1724507446441,6.3227,158.16,158.09,6.61076234]
[1724507446648,16.15575033,158.16,158.1,1.26470451]
[1724507446827,16.15575033,158.16,158.11,1.26457415]
[1724507447239,16.15575033,158.16,158.09,6.61250818]
[1724507447548,16.15575033,158.16,158.1,1.26459717]
[1724507447730,16.15575033,158.16,158.11,1.2645977]
[1724507450247,16.15575033,158.16,158.09,6.61250818]
[1724507454653,6.3227,158.16,158.1,1.26454188]
[1724507454850,6.3227,158.16,158.11,1.26454266]
[1724507459657,6.44789,158.17,158.11,1.26454266]
[1724507459864,6.44789,158.17,158.09,22.34942166]
[1724507460062,6.3227,158.16,158.09,22.34942166]
[1724507462643,6.44789,158.17,158.1,1.26454182]
[1724507462846,6.44789,158.17,158.11,1.26448739]
[1724507463961,6.44789,158.17,158.09,22.34942166]
[1724507465964,6.44789,158.17,158.1,1.2644945]
[1724507466150,6.44789,158.17,158.11,1.26449139]
[1724507468568,6.3224,158.17,158.11,1.26449139]
[1724507468871,6.322,158.18,158.11,1.26449139]
[1724507469360,6.3224,158.17,158.11,1.26449139]
[1724507469561,6.3227,158.16,158.1,12.746195]
[1724507470967,6.3223,158.17,158.1,12.746195]
[1724507471652,6.3227,158.16,158.1,12.746195]
[1724507472357,16.15575033,158.16,158.1,12.746195]
[1724507472557,9.83305033,158.16,158.1,12.746195]
[1724507473858,9.83305033,158.14,158.1,6.612095]
[1724507474172,0.12549,158.15,158.1,6.612095]
[1724507474364,0.25098,158.15,158.1,6.612095]
[1724507474565,0.25098,158.15,158.11,1.26465963]
[1724507474757,6.57408,158.15,158.11,1.26465963]
[1724507475871,6.57408,158.15,158.1,6.612095]
[1724507479277,0.25098,158.15,158.1,6.612095]
[1724507482591,0.25098,158.15,158.11,1.26466166]
[1724507484162,0.25098,158.15,158.1,6.612095]
[1724507484963,0.25098,158.15,158.11,1.26466268]
[1724507485596,0.12549,158.15,158.11,1.26466268]
[1724507486095,16.15575033,158.16,158.11,1.26466268]
[1724507491413,6.44789,158.17,158.12,1.26459298]
[1724507494453,15.8022,158.21,158.1,6.612095]
[1724507494454,6.321,158.21,158.14,15.3807]
[1724507494628,9.83305033,158.21,158.15,1.26430671]
[1724507494796,16.15455033,158.19,158.14,15.3807]
[1724507495614,9.83305033,158.17,158.11,6.0601]
[1724507495913,9.83305033,158.15,158.11,6.0601]
[1724507496217,9.83305033,158.15,158.1,21.992795]
[1724507499694,16.15615033,158.15,158.1,21.992795]
[1724507501437,6.3235,158.14,158.1,21.992795]
[1724507501737,9.83305033,158.13,158.1,6.612095]
[1724507509145,6.44899,158.14,158.11,1.26489162]
[1724507510353,6.44899,158.14,158.1,6.612095]
[1724507510531,0.25098,158.13,158.1,6.612095]
[1724507514743,6.57488,158.13,158.1,6.612095]
[1724507515159,16.40793033,158.13,158.1,6.612095]
[1724507520255,6.3244,158.12,158.1,6.612095]
[1724507520440,0.25098,158.11,158.1,6.612095]
[1724507520933,6.57568,158.11,158.1,6.612095]
[1724507521169,16.40873033,158.11,158.1,6.612095]
[1724507522246,0.25098,158.11,158.1,6.612095]
[1724507527645,16.40873033,158.11,158.1,6.612095]
[1724507528974,61.40873033,158.11,158.1,6.612095]
[1724507530089,61.40873033,158.11,158.1,6.112095]
[1724507531056,6.57568,158.11,158.1,6.112095]
[1724507531258,55.08403033,158.11,158.1,6.112095]
[1724507532485,61.40873033,158.11,158.1,6.112095]
[1724507539880,64.61741349,158.11,158.1,6.112095]
[1724507540876,61.40873033,158.11,158.1,6.112095]
[1724507541089,64.61741349,158.11,158.1,6.112095]
[1724507544364,64.6174143,158.11,158.1,6.112095]
[1724507546371,54.78436397,158.11,158.1,6.112095]
[1724507546569,3.20868397,158.11,158.1,6.112095]
[1724507546979,9.83305033,158.13,158.1,6.112095]
[1724507547191,3.20832017,158.12,158.1,6.112095]
[1724507547387,16.15725033,158.13,158.1,6.112095]
[1724507547565,9.83305033,158.13,158.1,6.112095]
[1724507547904,3.20826252,158.12,158.1,6.112095]
[1724507548063,3.20814384,158.12,158.1,6.112095]
[1724507548267,6.3235,158.14,158.1,6.112095]
[1724507548482,8.95705785,158.13,158.1,6.112095]
[1724507548786,3.20814578,158.12,158.1,6.112095]
[1724507548989,9.83305033,158.13,158.1,6.112095]
[1724507549173,3.20821583,158.12,158.1,6.112095]
[1724507549367,9.83305033,158.13,158.1,6.112095]
[1724507549572,3.3335987,158.12,158.1,6.112095]
[1724507549771,7.91307061,158.16,158.1,6.112095]
[1724507549772,14.23587061,158.16,158.1,6.112095]
[1724507550084,25.11297343,158.15,158.1,6.112095]
[1724507550276,9.83305033,158.13,158.1,6.112095]
[1724507550586,3.20799975,158.12,158.1,6.112095]
[1724507550768,9.83305033,158.13,158.1,6.112095]
[1724507550969,3.20798755,158.12,158.1,6.112095]
[1724507551183,0.25098,158.11,158.1,6.112095]
[1724507551485,0.12549,158.11,158.1,6.112095]
[1724507551682,16.15625033,158.15,158.1,6.112095]
[1724507551880,9.08192198,158.14,158.1,6.112095]
[1724507552082,3.33336275,158.13,158.1,6.112095]
[1724507552269,3.33336275,158.12,158.1,6.112095]
[1724507552473,0.12549,158.13,158.1,6.112095]
[1724507552687,3.20788042,158.12,158.1,6.112095]
[1724507552993,0.25098,158.14,158.1,6.112095]
[1724507553289,3.20788042,158.13,158.1,6.112095]
[1724507553491,3.45886042,158.12,158.1,6.112095]
[1724507553804,0.25098,158.14,158.1,6.112095]
[1724507554096,3.20787531,158.13,158.1,6.112095]
[1724507554394,3.45885531,158.12,158.1,6.112095]
[1724507554594,0.25098,158.14,158.1,6.112095]
[1724507554773,3.20788042,158.13,158.1,6.112095]
[1724507554974,3.45886042,158.12,158.1,6.112095]
[1724507555180,0.25098,158.14,158.1,6.112095]
[1724507555392,3.20787531,158.13,158.1,6.112095]
[1724507555579,3.45885531,158.12,158.1,6.112095]
[1724507555774,0.25098,158.12,158.1,6.112095]
[1724507556776,9.83305033,158.15,158.11,1.26489435]
[1724507556999,8.95644959,158.14,158.11,1.26489435]
[1724507557288,9.83305033,158.15,158.08,6.2061]
[1724507557289,3.20788043,158.13,158.08,6.2061]
[1724507557493,3.20788043,158.12,158.08,6.2061]
[1724507557675,9.83305033,158.15,158.08,6.2061]
[1724507558076,8.95647631,158.14,158.08,6.2061]
[1724507558280,3.20789209,158.13,158.08,6.2061]
[1724507558488,14.23567674,158.16,158.08,6.2061]
[1724507558489,3.20789209,158.12,158.08,6.2061]
[1724507558683,9.83305033,158.15,158.08,6.2061]
[1724507558993,9.20744132,158.14,158.08,6.2061]
[1724507559169,3.20788555,158.13,158.08,6.2061]
[1724507559365,3.20788555,158.12,158.08,6.2061]
[1724507559680,0.25098,158.14,158.08,6.2061]
[1724507559988,3.20796502,158.13,158.08,6.2061]
[1724507560198,3.20796502,158.12,158.09,1.26476436]
[1724507560487,0.25098,158.14,158.08,6.2061]
[1724507560680,3.20788299,158.13,158.08,6.2061]
[1724507560872,0.25098,158.14,158.08,6.2061]
[1724507560873,3.20788299,158.12,158.08,6.2061]
[1724507561079,0.25098,158.14,158.08,6.2061]
[1724507561473,3.20789385,158.13,158.08,6.2061]
[1724507561696,0.25098,158.14,158.08,6.2061]
[1724507561873,3.20789656,158.13,158.08,6.2061]
[1724507562073,0.25098,158.14,158.08,6.2061]
[1724507562274,3.20788059,158.13,158.08,6.2061]
[1724507562578,0.12549,158.14,158.08,5.2061]
[1724507562777,3.20788638,158.13,158.08,5.2061]
[1724507563001,0.12549,158.14,158.08,5.2061]
[1724507563205,3.20788446,158.13,158.08,5.2061]
[1724507563404,0.12549,158.14,158.08,5.2061]
[1724507563579,3.20788318,158.13,158.09,1.26476517]
[1724507563782,0.12549,158.14,158.08,5.2061]
[1724507563990,3.20788063,158.13,158.08,5.2061]
[1724507564202,0.12549,158.14,158.08,5.2061]
[1724507564406,3.20788318,158.13,158.09,1.26474583]
[1724507564901,9.83305033,158.15,158.09,1.26474583]
[1724507565083,8.9564383,158.14,158.09,1.26474583]
[1724507565282,3.20787551,158.13,158.09,1.26474583]
[1724507565485,9.83305033,158.15,158.09,1.26474583]
[1724507565696,8.9564383,158.14,158.09,1.26474583]
[1724507565991,3.20787807,158.13,158.09,1.26474583]
[1724507566315,9.83305033,158.15,158.08,5.2061]
[1724507566600,8.95644417,158.14,158.08,5.2061]
[1724507566897,3.20787807,158.13,158.09,1.26471934]
[1724507567077,9.83305033,158.15,158.09,1.26471934]
[1724507567277,8.95644818,158.14,158.09,1.26471934]
[1724507567477,3.20787982,158.13,158.09,1.26471934]
[1724507567687,9.83305033,158.15,158.09,1.26471934]
[1724507567879,8.95615243,158.14,158.1,1.26461504]
[1724507568085,3.2077508,158.14,158.11,1.26464085]
[1724507568277,3.2077508,158.13,158.11,1.26464085]
[1724507568477,0.12549,158.16,158.11,1.26464085]
[1724507568779,8.95581543,158.15,158.11,1.26464085]
[1724507568980,3.20760379,158.14,158.11,1.26464085]
[1724507569192,3.20760379,158.13,158.11,1.26464085]
[1724507569395,0.25098,158.16,158.11,1.26464085]
[1724507569594,8.95563675,158.15,158.11,1.26464085]
[1724507569797,3.20752584,158.14,158.11,1.26464085]
[1724507569999,0.25098,158.16,158.11,1.26464085]
[1724507570199,8.95564847,158.15,158.11,1.26464085]
[1724507570485,3.20753095,158.14,158.11,1.26464085]
[1724507570803,0.25098,158.16,158.11,1.26464085]
[1724507571009,8.95563675,158.15,158.11,1.26464085]
[1724507571209,3.20752584,158.14,158.11,1.26464085]
[1724507571405,0.25098,158.16,158.11,1.26464085]
[1724507571602,8.9550857,158.15,158.11,1.26464085]
[1724507571782,3.2072265,158.14,158.11,1.26464085]
[1724507572103,0.25098,158.16,158.11,1.26464085]
[1724507572303,8.95520199,158.15,158.11,1.26464085]
[1724507572499,3.20733618,158.14,158.11,1.26464085]
[1724507572690,0.25098,158.16,158.11,1.26464085]
[1724507572884,3.2072265,158.15,158.09,15.918]
[1724507573077,3.2072265,158.14,158.09,15.918]
[1724507573283,0.25098,158.16,158.09,15.918]
[1724507573596,8.9551088,158.15,158.09,15.918]
[1724507573798,3.2072265,158.14,158.1,1.26464185]
[1724507573992,9.83305033,158.15,158.11,1.26464651]
[1724507574186,3.20734638,158.14,158.11,1.26464651]
[1724507574385,0.25098,158.16,158.11,1.26464651]
[1724507574605,18.78824987,158.15,158.11,1.26464651]
[1724507574798,3.20733511,158.14,158.11,1.26464651]
[1724507574986,0.12549,158.16,158.11,1.26464651]
[1724507575186,3.20733942,158.15,158.11,1.26464651]
[1724507575381,0.25098,158.17,158.11,1.26464651]
[1724507575608,18.78801404,158.16,158.11,1.26464651]
[1724507575786,3.20723223,158.15,158.11,1.26464651]
[1724507575989,3.20723223,158.14,158.09,15.918]
[1724507576194,9.83305033,158.16,158.1,45.0]
[1724507576393,3.20722394,158.15,158.1,45.0]
[1724507576594,3.20722394,158.14,158.1,45.0]
[1724507576789,6.3219,158.18,158.1,45.0]
[1724507576988,18.78773188,158.17,158.1,45.0]
[1724507577189,8.95468155,158.16,158.1,45.0]
[1724507577393,9.83305033,158.17,158.11,1.2645192]
[1724507577596,3.20711426,158.15,158.12,1.26450713]
[1724507577796,3.20711426,158.14,158.12,1.26450713]
[1724507578116,9.83305033,158.17,158.12,1.26450713]
[1724507578299,8.9549447,158.16,158.12,1.26450713]
[1724507578486,3.20722394,158.15,158.12,1.26450713]
[1724507578687,3.20722394,158.14,158.1,45.0]
[1724507579004,9.83305033,158.17,158.11,1.2645162]
[1724507579209,8.954705,158.16,158.11,1.2645162]
[1724507579406,3.20711937,158.15,158.11,1.2645162]
[1724507579611,9.83305033,158.17,158.11,1.2645162]
[1724507579801,8.95398183,158.16,158.11,1.2645162]
[1724507580000,3.20680389,158.15,158.11,1.2645162]
[1724507580203,3.20680389,158.14,158.11,1.2645162]
[1724507580402,9.83305033,158.17,158.1,45.0]
[1724507581108,8.95423911,158.16,158.1,45.0]
[1724507581310,3.20691613,158.15,158.1,45.0]
[1724507581496,9.83305033,158.17,158.1,45.0]
[1724507581701,8.95400126,158.16,158.1,45.0]
[1724507581904,3.20681237,158.15,158.1,45.0]
[1724507582215,9.83305033,158.17,158.1,45.0]
[1724507582414,8.95425268,158.16,158.1,45.0]
[1724507582605,3.20692205,158.15,158.1,45.0]
[1724507582917,9.83305033,158.17,158.1,45.0]
[1724507583113,8.95428526,158.16,158.1,45.0]
[1724507583317,3.20691949,158.15,158.1,45.0]
[1724507583692,9.83305033,158.17,158.1,45.0]
[1724507584095,8.95424095,158.16,158.1,45.0]
[1724507584299,3.20691693,158.15,158.1,45.0]
[1724507584505,9.83305033,158.17,158.1,45.0]
[1724507584820,8.95424095,158.16,158.1,45.0]
[1724507585020,3.20691693,158.15,158.1,45.0]
[1724507585222,9.83305033,158.17,158.1,45.0]
[1724507585423,8.95420652,158.16,158.1,45.0]
[1724507585609,3.20690191,158.15,158.11,17.10034643]
[1724507585811,9.83305033,158.17,158.11,17.10034643]
[1724507586011,8.95361115,158.16,158.11,15.8359]
[1724507586323,3.20664219,158.15,158.12,1.26443961]
[1724507586622,16.15455033,158.19,158.12,1.26443961]
[1724507586831,8.95317667,158.18,158.13,7.33933553]
[1724507587040,5.74672402,158.17,158.13,6.075]
[1724507587329,3.20645265,158.16,158.13,6.075]
[1724507587526,9.83305033,158.19,158.13,6.075]
[1724507587827,8.95064484,158.18,158.13,6.075]
[1724507588000,8.95064484,158.17,158.13,6.075]
[1724507588321,3.20534816,158.16,158.13,6.075]
[1724507588527,3.20534816,158.15,158.13,6.075]
[1724507588829,9.83305033,158.2,158.13,6.075]
[1724507589120,18.78624458,158.19,158.13,6.075]
[1724507589424,8.95319425,158.18,158.13,6.075]
[1724507589612,8.95319425,158.17,158.13,6.075]
[1724507589798,8.95319425,158.16,158.13,6.075]
[1724507590002,3.20646032,158.15,158.13,6.075]
[1724507590212,6.3211,158.2,158.13,6.075]
[1724507590408,8.95297359,158.19,158.14,1.26430502]
[1724507590700,8.95297359,158.18,158.15,1.26427058]
[1724507590909,8.95297359,158.17,158.15,1.26427058]
[1724507591111,3.20636406,158.16,158.15,1.26427058]
[1724507591720,3.20636406,158.16,158.15,17.84027058]
[1724507591915,3.20636406,158.16,158.15,16.576]
[1724507594131,3.20615008,158.16,158.15,16.576]
[1724507597223,3.20628426,158.16,158.15,16.576]
[1724507600416,16.15455033,158.19,158.15,17.84039005]
[1724507600739,3.20628347,158.18,158.15,17.84039005]
[1724507600919,3.20628347,158.17,158.15,17.84039005]
[1724507601233,3.20628347,158.16,158.15,17.84039005]
[1724507602321,3.20628347,158.16,158.15,16.576]
[1724507602713,3.20628347,158.16,158.15,17.84039531]
[1724507603736,3.20628347,158.16,158.15,16.576]
[1724507603933,3.20628347,158.16,158.15,17.84038991]
[1724507604149,3.2060588,158.16,158.15,17.84038991]
[1724507605039,3.2060588,158.16,158.15,16.576]
[1724507605337,3.2060588,158.16,158.15,17.8403831]
[1724507606327,3.2060588,158.16,158.15,16.576]
[1724507606520,3.2060588,158.16,158.15,17.84037976]
[1724507607014,3.20616805,158.16,158.15,16.576]
[1724507608719,3.20605961,158.16,158.15,16.576]
[1724507614044,3.20616886,158.16,158.15,16.576]
[1724507621454,3.20616886,158.16,158.15,17.84031482]
[1724507629162,16.15415033,158.2,158.15,17.84031482]
[1724507629538,3.20616766,158.16,158.15,17.84031482]
[1724507629737,7.28543899,158.16,158.15,17.84031482]
[1724507629938,7.28543899,158.16,158.15,16.576]
[1724507635648,3.20616766,158.16,158.15,16.576]
[1724507636038,7.28519588,158.16,158.15,16.576]
[1724507636470,11.36442779,158.16,158.15,16.576]
[1724507636871,7.28517571,158.16,158.15,16.576]
[1724507637370,3.2059438,158.16,158.15,17.84029896]
[1724507637665,7.28342251,158.16,158.15,61.576]
[1724507637970,7.28342251,158.16,158.15,62.84013771]
[1724507641065,4.07870335,158.16,158.15,62.84013771]
[1724507641269,16.15335033,158.22,158.15,62.84013771]
[1724507641472,7.28419501,158.16,158.15,62.84013771]
[1724507641972,4.07907907,158.16,158.15,62.84013771]
[1724507642271,7.28410009,158.16,158.15,62.84013771]
[1724507643376,7.28410009,158.16,158.15,61.576]
[1724507644156,7.28410009,158.16,158.11,16.6542]
[1724507644364,9.83305033,158.17,158.12,20.0]
[1724507644668,17.11750724,158.16,158.12,20.0]
[1724507644886,13.03838735,158.16,158.12,20.0]
[1724507645178,9.83305033,158.16,158.12,20.0]
[1724507645680,9.83305033,158.16,158.13,45.0]
[1724507645848,9.83305033,158.17,158.13,45.0]
[1724507646048,7.28422569,158.16,158.13,45.0]
[1724507646247,9.83305033,158.17,158.13,45.0]
[1724507646448,7.28422684,158.16,158.13,45.0]
[1724507646768,9.83305033,158.18,158.13,45.0]
[1724507647090,7.28422731,158.17,158.13,45.0]
[1724507647248,7.28422731,158.16,158.13,45.0]
[1724507647450,9.83305033,158.18,158.13,45.0]
[1724507647656,7.28435061,158.17,158.13,45.0]
[1724507647865,9.83305033,158.18,158.13,45.0]
[1724507648068,4.07916043,158.16,158.13,45.0]
[1724507648271,9.83305033,158.18,158.13,45.0]
[1724507648673,7.28471403,158.17,158.13,45.0]
[1724507648981,7.28471403,158.16,158.13,45.0]
[1724507649178,9.83305033,158.18,158.13,45.0]
[1724507649352,7.28458557,158.17,158.14,1.26433341]
[1724507649552,3.20544483,158.16,158.15,1.26436792]
[1724507649753,7.28458557,158.16,158.15,1.26436792]
[1724507650553,7.28458557,158.16,158.14,1.26438859]
[1724507650851,3.20544999,158.17,158.14,1.26438859]
[1724507651053,7.28471403,158.16,158.15,1.26434746]
[1724507652482,7.28471403,158.16,158.14,1.26439034]
[1724507652685,3.20544999,158.17,158.14,1.26439034]
[1724507652869,7.28471592,158.16,158.14,1.26439034]
[1724507653062,3.20544999,158.17,158.14,1.26439034]
[1724507653263,7.28471544,158.16,158.14,1.26439034]
[1724507653487,3.20544999,158.17,158.14,1.26439034]
[1724507653669,7.28471286,158.16,158.14,1.26439034]
[1724507653969,3.20544999,158.17,158.14,1.26439034]
[1724507654156,7.27981013,158.16,158.14,1.26439034]
[1724507654358,3.20544999,158.17,158.14,1.26439034]
[1724507654599,7.27981271,158.16,158.14,1.26439034]
[1724507654779,3.20544999,158.17,158.14,1.26439034]
[1724507654973,7.27981013,158.16,158.14,1.26439034]
[1724507655172,3.20065036,158.16,158.14,1.26439034]
[1724507655379,3.20544999,158.17,158.15,1.26438031]